Cogmind - Beta 15 @@@ ROGUE MODE // 2025.10.16 @ 05:48:32 Player: time Result: Destroyed by S-10 Pest with Light Assault Rifle Performance ------------- Evolutions (2) 1000 Regions Visited (4) 800 Robots Destroyed (61) 305 Value Destroyed (1459) 1459 Prototype IDs (9) 180 Alien Tech Used (0) 0 Bonus (294) 294 TOTAL SCORE: 4038 Bonus ------- Follower Combat Kills 294 Cogmind --------- Core Integrity 0/550 Matter 270/300 Energy 62/100 System Corruption 10% Temperature Cool (0) Movement Flying (30) Location -8/Materials Parts ------- > --- POWER (1) -------- (None) > --- PROPULSION (4) --- Improved Flight Unit Improved VTOL Module Improved VTOL Module > --- UTILITY (3) ------ Medium Storage Unit Terrain Scan Processor > --- WEAPON (3) ------- Improved Datajack Scythe > --- INVENTORY (10) --- Aluminum Leg Aluminum Leg Carbon-fiber Leg Improved VTOL Module ECM Suite Peak State ------------ > --- POWER ------------ Reinforced Ion Engine > --- PROPULSION ------- Improved Aluminum Leg Improved Aluminum Leg Improved Aluminum Leg Improved Aluminum Leg > --- UTILITY ---------- Improved Heat Sink Medium Storage Unit Terrain Scan Processor > --- WEAPON ----------- Heavy EM Shotgun Advanced Beam Rifle Advanced Beam Rifle > --- INVENTORY -------- Improved Flight Unit Improved VTOL Module Improved VTOL Module Improved VTOL Module ECM Suite Improved Medium Laser Improved Assault Rifle Improved Assault Rifle Advanced EMP Blaster Scythe [Rating: 31] Favorites ----------- Power Reinforced Ion Engine Engine Reinforced Ion Engine Power Core Light Nuclear Core Propulsion Improved Aluminum Leg Treads Armored Treads Leg Improved Aluminum Leg Flight Unit Flight Unit Utility Medium Storage Unit Device Seismic Detector Storage Medium Storage Unit Processor Terrain Scan Processor Weapon EM Pulse Cannon Energy Gun Advanced Beam Rifle Energy Cannon EM Pulse Cannon Ballistic Gun Assault Rifle Launcher Mini Grenade Launcher Slashing Weapon Scythe Special Melee Weapon Improved Datajack Build | -11 -10 -9 -9 -8 ------- Run | Yrd Mat Mat Sto Mat Slots Evolved 4 | . . 2 . 2 Power . | . . . . . Propulsion 2 | . . 1 . 1 Utility 1 | . . 1 . . Weapon 1 | . . . . 1 Parts Attached 63 | 7 3 23 10 20 Power 6 | 1 1 3 . 1 Engine 5 | 1 1 3 . . Core 1 | . . . . 1 Reactor . | . . . . . Propulsion 25 | 2 . 9 4 10 Treads 3 | . . 3 . . Leg 16 | 2 . 3 4 7 Wheel . | . . . . . Hover . | . . . . . Flight 6 | . . 3 . 3 Utility 11 | 2 . 5 1 3 Device 6 | 1 . 2 . 3 Storage 4 | 1 . 3 . . Processor 1 | . . . 1 . Hackware . | . . . . . Protection . | . . . . . Artifact . | . . . . . Weapon 21 | 2 2 6 5 6 Energy Gun 8 | . 2 1 2 3 Energy Cannon 3 | . . 3 . . Ballistic Gun 6 | 2 . 1 2 1 Ballistic Cannon . | . . . . . Launcher 2 | . . . 1 1 Special Weapon . | . . . . . Impact Weapon . | . . . . . Slashing Weapon 1 | . . 1 . . Piercing Weapon . | . . . . . Special Melee Weapon 1 | . . . . 1 Unidentified Prototypes 9 | . . 1 3 5 Corrupted Parts 2 | . . 1 . 1 System Corruption 12 | . . 2 . 10 Parts Lost 25 | . 2 10 . 13 Power 4 | . 1 1 . 2 Propulsion 8 | . . 5 . 3 Utility 5 | . . 2 . 3 Weapon 8 | . 1 2 . 5 Highest Loss Streak 7 | . 2 5 . 7 To Critical Strikes . | . . . . . Average Backups 7 | 2 6 7 9 8 Power . | . . . . . Propulsion 2 | 1 2 1 2 3 Utility 1 | . 1 1 2 . Weapon 3 | . 2 4 4 3 Tool/Special . | . . . . . Unused Backups 13 | . 2 2 6 3 Power . | . . . . . Propulsion 5 | . 2 1 . 2 Utility 3 | . . . 3 . Weapon 5 | . . 1 3 1 Tool/Special . | . . . . . Average Slot Usage (%) 90 | . 98 82 99 88 Engine 9 | . 13 8 11 5 Treads 4 | . . 3 13 . Leg 19 | . 27 9 19 28 Flight 5 | . . 13 . 3 Device 8 | . 14 11 . 7 Storage 15 | . 14 13 25 9 Processor 4 | . . . 7 9 Energy Gun 8 | . 12 3 8 13 Energy Cannon 5 | . . 9 10 . Ballistic Gun 5 | . 15 2 . 8 Slashing Weapon 1 | . . 4 . . Peak Build Rating 31 | 7 7 24 25 31 Average Rating 16 | 5 6 13 22 25 On Entrance 11 | . 7 7 24 19 Naked Turns . | . . . . . Heaviest Build 31 | 14 15 31 31 31 Greatest Support 60 | 20 20 60 60 52 Greatest Overweight (x) 9 | 1 1 8 9 1 Average Overweight (x) . | . . . . . Largest Inventory Capacity 10 | 8 8 10 10 10 Average Capacity 9 | 7 8 9 10 10 Most Carried 10 | 4 8 10 10 10 Average Carried 7 | 2 6 7 9 8 Final Capacity 10 | 8 8 10 10 10 Final Carried 10 | 4 8 9 10 5 Class Distribution -------------------- 51% | Mutant 19% | Scavenger-Mutant 17% | Gunner 9% | Commander-Mutant Dominant Class ---------------- Mutant | -10/Materials Mutant | -9/Materials Mutant | -9/Storage Gunner | -8/Materials Resources | -11 -10 -9 -9 -8 ----------- Run | Yrd Mat Mat Sto Mat Matter Collected 1364 | 258 164 223 146 573 Remotely . | . . . . . Salvage Created 1898 | 29 356 397 191 925 Parts 116 | 6 19 31 15 45 Haulers Intercepted 4 | . 1 . 1 2 Recyclers Shooed 2 | . . . 1 1 Parts Field Recycled . | . . . . . Retrieved Matter . | . . . . . Parts Self-Destructed . | . . . . . Prevented . | . . . . . Kills | -11 -10 -9 -9 -8 ------- Run | Yrd Mat Mat Sto Mat Combat Hostiles Destroyed 42 | . 10 10 3 19 Melee 1 | . . 1 . . Guns 35 | . 10 7 . 18 Cannons 3 | . . 2 1 . AOE 3 | . . . 2 1 Classes Destroyed 11 | 1 4 3 1 2 Worker 8 | . . 1 3 4 Builder 2 | . . 2 . . Tunneler 2 | 2 . . . . Hauler 4 | . 1 . 1 2 Recycler 1 | . . . . 1 Watcher 2 | . 1 1 . . Swarmer 18 | . 6 5 . 7 Grunt 18 | . 4 2 2 10 Protector 1 | . . . 1 . Sentry 4 | . . 3 . 1 Hunter 1 | . . . . 1 Best Kill Streak 7 | 2 7 4 3 7 Combat Bots Only 6 | . 4 3 2 6 Max Kills in Single Turn 3 | 1 1 3 3 3 Gunslinging . | . . . . . Exploded 1 | . . . 1 1 Melee 1 | . . 1 . . Uniques/NPCs Destroyed . | . . . . . Combat | -11 -10 -9 -9 -8 -------- Run | Yrd Mat Mat Sto Mat Hostile Shots Fired 398 | . 56 101 34 207 Missed 99 | . 15 24 12 48 Hits 299 | . 41 77 22 159 Projectile 299 | . 41 77 22 159 Critical Strikes 8 | . . 3 . 5 Damage Taken 3878 | . 421 963 299 2195 Core 967 | . 83 278 56 550 Absorbed by Shields . | . . . . . Core Remaining (%) 60 | 100 66 . 16 . Volleys Fired 153 | 4 37 42 16 54 Largest 3 | 2 2 2 2 3 Hottest 178 | 40 70 126 119 178 Shots Fired 302 | 8 73 46 28 147 Gun 268 | 8 73 35 10 142 Cannon 27 | . . 11 16 . Launcher 7 | . . . 2 5 Special . | . . . . . Kinetic 109 | 8 37 21 . 43 Thermal 136 | . 13 14 10 99 Explosive 2 | . . . 2 . Electromagnetic 55 | . 23 11 16 5 Robot Hit Streak 10 | 3 6 7 8 10 Robot Miss Streak 9 | 2 3 3 5 9 Penetration Max . | . . . . . Secondary Targets 7 | . 1 . . 6 Max Gunslinging Chain 1 | . 1 . . 1 Shots Hit Robots 194 | 5 45 41 15 88 Core Hits 96 | 4 16 17 12 47 Critical Kills . | . . . . . Critical Parts Destroyed 1 | . . . . 1 Critical Strikes 8 | . . . 1 7 Burn 6 | . . . . 6 Destroy 1 | . . . . 1 Corrupt 1 | . . . 1 . Melee Attacks 24 | . . 11 2 11 Impact . | . . . . . Slashing 20 | . . 11 2 7 Piercing . | . . . . . Sneak Attacks 5 | . . 3 . 2 Combat Hostiles . | . . . . . Follow-up Attacks . | . . . . . Damage Inflicted 4454 | 70 618 853 690 2223 Guns 2623 | 70 616 268 81 1588 Cannons 391 | . . 172 219 . Explosions 999 | . . 77 383 539 Melee 432 | . . 336 . 96 Ramming 9 | . 2 . 7 . Kinetic 963 | 70 340 139 . 414 Thermal 1746 | . 114 206 252 1174 Explosive 212 | . . . 212 . Electromagnetic 1092 | . 162 172 219 539 Impact . | . . . . . Slashing 432 | . . 336 . 96 Piercing . | . . . . . Highest Corruption 10 | . . 2 4 10 Average Corruption 5 | . . 2 3 10 Corruption Purged . | . . . . . Corruption Blocked . | . . . . . Effects 34 | . . 5 12 17 Message Errors 5 | . . . 3 2 Matter Fused 8 | . . 2 3 3 Heat Flow Errors 5 | . . 1 3 1 Energy Discharges 3 | . . . 1 2 Parts Rejected 2 | . . 1 . 1 Data Loss (minor) 5 | . . 1 2 2 Data Loss (major) 2 | . . . . 2 Misfires 2 | . . . . 2 Misdirections 1 | . . . . 1 Weapon Failures 1 | . . . . 1 Overload Shots . | . . . . . Overflow Damage 83 | . . 78 . 5 Projectiles 6 | . . 6 . . Explosions 5 | . . . . 5 Melee 72 | . . 72 . . Knockbacks . | . . . . . Impact . | . . . . . Kinetic . | . . . . . Secondary . | . . . . . Self-Inflicted Damage 56 | . . . . 56 Shots 2 | . . . . 2 Rammed . | . . . . . Targets Rammed 3 | . 1 . 2 . Kicked 3 | . 1 . 2 . Crushed . | . . . . . Highest Temperature 618 | . 81 224 480 618 Average Temperature 119 | . 27 38 164 160 Received Heat Transfer 1326 | . 156 321 111 738 Effects 15 | . . . 2 13 Shutdowns 5 | . . . 1 4 Energy Bleed 1 | . . . . 1 Interference 3 | . . . . 3 Matter Decay 2 | . . . . 2 Short Circuit 1 | . . . . 1 Damage (minor) 1 | . . . . 1 Damage (major) 1 | . . . 1 . Damage (core) 1 | . . . . 1 Siege Activations . | . . . . . Martial Activations . | . . . . . Shielding Activations . | . . . . . Robots Disrupted 1 | . . . . 1 Combat Hostiles . | . . . . . Robots Corrupted . | . . . . . Combat Hostiles . | . . . . . Parts Fried 3 | . . . 3 . Impact Corruptions . | . . . . . Robots Melted . | . . . . . Combat Hostiles . | . . . . . Parts Melted 3 | . . . . 3 Heat Transferred 3856 | . 333 470 389 2664 Parts Sabotaged . | . . . . . Parts Stolen . | . . . . . Parts Stripped . | . . . . . Power Chain Reactions 4 | . . 1 2 1 Alert | -11 -10 -9 -9 -8 ------- Run | Yrd Mat Mat Sto Mat Maximum Alert Level 2 | . . . 1 2 Low Security (%) 73 | 100 100 100 57 29 Level 1 24 | . . . 42 61 Level 2 2 | . . . . 8 Level 3 . | . . . . . Level 4 . | . . . . . Level 5 . | . . . . . High Security . | . . . . . Max Security . | . . . . . Peak Influence 554 | 5 109 65 338 554 Initial 118 | . . 28 24 118 Average 111 | . 52 14 153 262 Influence Increases 2179 | 10 265 287 768 849 Destroy 0b10 Robot/C 1020 | . 200 200 240 380 Destroy 0b10 Robot/NC 110 | 10 10 20 35 35 Destroy Leader 204 | . 34 42 64 64 Allied During Kill 100 | . . . 100 . Trap Triggered on 0b10 20 | . . . 20 . Successful Hack 49 | . 5 5 34 5 Disable Machine 105 | . . . 45 60 Anti-Garrison Action 150 | . . . 150 . Destroy Structure 31 | . 1 5 20 5 Lose Combat Pursuer 390 | . 15 15 60 300 Influence Decreases 1628 | 10 196 297 546 579 Entered New Map 239 | . . 41 35 163 Time Decay 918 | 10 176 203 243 286 Lost Part 203 | . 20 53 . 130 Lost Ally 180 | . . . 180 . Purge Threat 88 | . . . 88 . Squads Dispatched 10 | . . . 3 7 Investigation 1 | . . . 1 . Extermination . | . . . . . Reinforcement 4 | . . . . 4 Assault 2 | . . . 2 . Garrison 3 | . . . . 3 Intercept . | . . . . . Searches Triggered . | . . . . . Construction Impeded 1 | . . . . 1 Haulers Reinforced . | . . . . . Active Scanning Responses . | . . . . . Cargo Convoy Interrupts . | . . . . . Stealth | -11 -10 -9 -9 -8 --------- Run | Yrd Mat Mat Sto Mat Distress Signals 8 | . 2 1 1 4 Communications Jammed . | . . . . . Distress Signals . | . . . . . Times Spotted 109 | . 15 22 21 51 Peak Tracking Total 11 | . 3 6 9 11 Tactical Retreats 12 | . 1 2 3 6 Traps | -11 -10 -9 -9 -8 ------- Run | Yrd Mat Mat Sto Mat Traps Triggered 4 | . 1 . 1 2 Indirectly 1 | . . . . 1 Trap Hack Attempts . | . . . . . Triggered . | . . . . . Disarmed 1 | . . . 1 . Reprogrammed 3 | . . . 3 . Reused 2 | . . . 2 . Traps Extracted . | . . . . . Installed . | . . . . . Triggered 2 | . . . 2 . Machines | -11 -10 -9 -9 -8 ---------- Run | Yrd Mat Mat Sto Mat Machines Disabled 8 | . . . 4 4 Max in Single Turn 2 | . . . 2 2 Garrison Access 1 | . . . 1 . Machines Repaired . | . . . . . Machines Dismantled . | . . . . . Machines Sabotaged . | . . . . . Overloaded Fab Kills . | . . . . . Hacking | -11 -10 -9 -9 -8 --------- Run | Yrd Mat Mat Sto Mat Machines Accessed 14 | . 2 3 8 1 Terminals 13 | . 2 3 7 1 Fabricators . | . . . . . Repair Stations . | . . . . . Recycling Units . | . . . . . Scanalyzers . | . . . . . Garrison Access 1 | . . . 1 . Total Hacks 41 | . 5 8 26 2 Successful 21 | . 2 2 16 1 Failed 20 | . 3 6 10 1 Catastrophic 2 | . . 1 1 . Database Lockouts . | . . . . . Manual 16 | . . 4 10 2 Terminals 39 | . 5 8 24 2 Fabricators . | . . . . . Repair Stations . | . . . . . Recycling Units . | . . . . . Scanalyzers . | . . . . . Garrison Access 2 | . . . 2 . Terminal Hacks 14 | . 2 1 11 . Open Door 1 | . . . 1 . Branch Access Points 1 | . . . 1 . Emergency Access Points 1 | . . . 1 . Terminal Index 1 | . 1 . . . Alert Level 1 | . 1 . . . Unreport Threat 1 | . . . 1 . Locate Traps 1 | . . . 1 . Disarm Traps 1 | . . . 1 . Reprogram Traps 1 | . . . 1 . Recall Extermination 1 | . . . 1 . Recall Assault 1 | . . . 1 . Zone Layout 3 | . . 1 2 . Fabricator Hacks . | . . . . . Repair Station Hacks . | . . . . . Recycling Unit Hacks . | . . . . . Scanalyzer . | . . . . . Garrison Access Hacks . | . . . . . Unauthorized Hacks 7 | . . 1 5 1 Terminals 7 | . . 1 5 1 Botnet 7 | . . 1 5 1 Fabricators . | . . . . . Repair Stations . | . . . . . Recycling Units . | . . . . . Scanalyzers . | . . . . . Garrison Access . | . . . . . Data Cores Recovered . | . . . . . Used . | . . . . . Hacking Detections 12 | . 1 3 7 1 Full Trace Events 1 | . . . 1 . Feedback Events . | . . . . . Feedback Blocked . | . . . . . Robot Schematics Acquired . | . . . . . Robots Built . | . . . . . Authchips . | . . . . . Time . | . . . . . Total Robot Build Rating . | . . . . . Part Schematics Acquired . | . . . . . Parts Built . | . . . . . Authchips . | . . . . . Time . | . . . . . Total Part Build Rating . | . . . . . Parts Repaired . | . . . . . Time . | . . . . . Parts Recycled . | . . . . . Recycled Matter . | . . . . . Retrieved Matter . | . . . . . Retrieved Components . | . . . . . Parts Scanalyzed . | . . . . . Part Schematics Acquired . | . . . . . Parts Damaged . | . . . . . Bothacking | -11 -10 -9 -9 -8 ------------ Run | Yrd Mat Mat Sto Mat Used RIF Installer . | . . . . . Robots Hacked 2 | . . . . 2 Non-combat 1 | . . . . 1 Combat 1 | . . . . 1 Robot Hacks Applied 2 | . . . . 2 parse_system 2 | . . . . 2 Relay Couplers Released 3 | . . . 3 . Machine Destruction 3 | . . . 3 . Fabnet Peak Effective % . | . . . . . Robots Rewired . | . . . . . Allies Hacked . | . . . . . Hacks Repelled . | . . . . . Allies | -11 -10 -9 -9 -8 -------- Run | Yrd Mat Mat Sto Mat Total Allies 10 | . . . 10 . Largest Group 10 | . . . 10 . Highest-Rated Group 88 | . . . 88 . Highest-Rated Ally 16 | . . . 16 . Total Orders . | . . . . . Ally Attacks 81 | . . . 81 . Total Damage 711 | . . . 711 . Kills 13 | . . . 13 . Allies Corrupted . | . . . . . Allies Melted . | . . . . . Intel | -11 -10 -9 -9 -8 ------- Run | Yrd Mat Mat Sto Mat Active Infowar (turns) 1004 | 25 432 479 . 68 Seismic 936 | 25 432 479 . . ECM 134 | . . 66 . 68 Robot Analysis Total . | . . . . . Derelict Logs Recovered . | . . . . . Drone Launches . | . . . . . Drone Recoveries . | . . . . . Exploration | -11 -10 -9 -9 -8 ------------- Run | Yrd Mat Mat Sto Mat Turns Passed 2634 | 96 432 865 619 622 Spaces Moved 1376 | 57 237 385 358 339 Core 8 | 4 . 3 1 . Treads 157 | . . 31 126 . Legs 974 | 53 237 203 231 250 Wheels . | . . . . . Hover . | . . . . . Flight 237 | . . 148 . 89 Fastest Speed 30 | 50 120 114 120 30 Average Speed 130 | 124 121 155 139 99 Slowest Speed 500 | 190 190 450 500 190 Overloaded Moves . | . . . . . Propulsion Burnouts . | . . . . . Robots Hopped 2 | . . . . 2 Potential Cave-ins . | . . . . . Cave-ins Triggered . | . . . . . Exploration Rate (%) 35 | 5 43 27 51 50 Regions Visited 4 Branch Regions 1 Pre-discovered Areas . | . . . . . Known Exits Taken . | . . . . . Unknown Exits Taken 4 | 1 1 1 1 . Scrap Searched . | . . . . . Spaces Dug . | . . . . . Terrain Destroyed 35 | . . 5 28 2 Melee . | . . . . . Projectile . | . . . . . AOE 35 | . . 5 28 2 Terrain Rammed . | . . . . . Walls Destroyed . | . . . . . Machines Disabled . | . . . . . Actions | -11 -10 -9 -9 -8 --------- Run | Yrd Mat Mat Sto Mat Total 1916 | 71 309 588 452 496 Wait 185 | . 20 102 27 36 Move 1368 | 56 236 384 357 335 Hop 2 | . . . . 2 Pick Up 41 | 4 8 9 12 8 Fast Attach 37 | 7 1 12 6 11 Attach 24 | . 3 7 3 11 Detach 16 | . 1 5 6 4 Swap 25 | . . 9 5 11 Drop 38 | . 2 7 16 13 Fire 153 | 4 37 42 16 54 Melee 24 | . . 11 2 11 Ram . | . . . . . Kick 3 | . 1 . 2 . Crush . | . . . . . Escape Stasis . | . . . . . Rewire . | . . . . . Trap . | . . . . . Miscellaneous . | . . . . . Route ------- -11/Scrapyard -10/Materials (discovered 2 exits: *Mat / [*Min]) -9/Materials -9/Storage (discovered 2 exits: *Mat / Rec) -8/Materials History --------- Turn | Location | Event 25 | -11/Scrapyard | Discovered new exit (range 15) 97 | -11/Scrapyard | Entered Materials 256 | -10/Materials | Discovered new exit (range 12) 306 | -10/Materials | Build established: Mutant 487 | -10/Materials | Discovered new exit (range 16) 529 | -10/Materials | Entered another Materials area 529 | -9/Materials | Evolved 2 slots: Propulsion x1, Utility x1 657 | -9/Materials | Core integrity fell below 50% 666 | -9/Materials | Lost 5 parts (3n2w) 956 | -9/Materials | Build established: Scavenger-Mutant 1050 | -9/Materials | Lost 5 parts (1p2n2u) 1194 | -9/Materials | Discovered new exit (range 10) 1338 | -9/Materials | Build established: Mutant 1394 | -9/Materials | Entered Storage 1412 | -9/Storage | Identified exit to Recycling 1492 | -9/Storage | Assisted by bots powering up and referring to "LRC-V3" 1507 | -9/Storage | Core integrity fell below 20% 1814 | -9/Storage | Lost 9 allies 1883 | -9/Storage | Discovered new exit (range 16) 2013 | -9/Storage | Entered Materials 2013 | -8/Materials | Evolved 2 slots: Propulsion x1, Weapon x1 2195 | -8/Materials | System corruption reached 10% 2267 | -8/Materials | Build established: Gunner 2409 | -8/Materials | Core integrity fell below 50% 2414 | -8/Materials | Garrison activated, responded to threat 2461 | -8/Materials | Lost 7 parts (1p3n1u2w) 2587 | -8/Materials | Core integrity fell below 20% 2617 | -8/Materials | Lost 4 parts (1p3w) 2635 | -8/Materials | Destroyed by S-10 Pest with Light Assault Rifle Last Messages --------------- 02557_ Dropped Carbon-fiber Leg. 02558_ Identified Imp. VTOL Module. 02561_ Adv. EMP Blaster destroyed. 02562_ Identified Imp. Flight Unit. 02563_ Acquired 55 matter. 02578_ System corrupted: Energy discharge (-5). 02586_ Adv. Beam Rifle destroyed. 02590_ R-06 Scavenger collects Imp. Aluminum Leg. 02592_ T-07 Excavator is excavating. 02603_ Sneak attack on K-01 Serf. 02603_ K-01 Serf destroyed. 02605_ JCPUXDTXVEZ6G5EQ>JFI#AF8KF 02609_ W-25 Informer sends out distress signal. 02616_ Connecting with Repair Station... 02623_ Jacked S-10 Pest... >>parse_system Reading system data... 02624_ System corrupted: Matter fused (-8). 02624_ Imp. Heat Sink destroyed. 02626_ S-10 Pest destroyed. Map ----- +----------------------------------------------------+ | ?????????????????????????????????????????????????? | | ?????????????????????????????????????????????????? | | ?????????????????????????????????????????????????? | | ?????????????????????????????????????????????????? | | ?????????????????????????????????????????????????? | | ?????????????????????????????????????????????????? | | ?????????????????????????????????????????????????? | | ?????????????????????????????????????????????????? | | ?????????????????????????????????????????????? | | ????????????????????????????????????????????? | | ????????????????????????????????????????????? | | ????????????????????????????????????????????? | | ????????????????????????????????????????????? | | #????????????????????????????????????????????? | | #????????????????????????????????????????????? | | ##???????????????????????????????????????????? | | #???????????????????????????????????????????? | | # #???????????????????????????????????????????? | | # #???????????????????????????????????????????? | | # #????????????##########?????????????????????? | | # #????????????# |#?????????????????????? | | # #####+####???# """ #?????????????????????? | | / #???# """ #?????????????????????? | | # #???# """s #?????????????????????? | | # #???# %s#?????????????????????? | | # #???# @ #?????????????????????? | | # ##+######## #???# " " #?????????????????????? | | # # #????# #???# "R" #?????????????????????? | | # # #????# #???# """Y#?????????????????????? | | # # #????# #???####+###/#######???????????????? | | # # ==#???## ##????# #???????????????? | | + / ##### [ ###### ####### ??????? | | # # [+ ?????? | | # # ## ## ###### ?????? | | # + ] ## #########?# ?????? | | # # ## # ?# ################ ????????? | | # ####### #? # ##########???????????????? | | # #?????# #??"""""" # # #???????????????? | | # #?????# #?""""""" + # #???????????????? | | # #####?# # """"""" # # // #???????????????? | | =%####### # """"""" # =+% / #???????????????? | | % / """""""?# *#! #???????????????? | | #??? ?# # #???????????????? | | % #???####??# # ] #???????????????? | | # #??######## # #???????????????? | | #% #??# # # #???????????????? | | #] #### """ # ##########???????????????? | | #% + """ + #????????????????????????? | | # = #### """ # #????????????????????????? | | #??# # #????????????????????????? | +----------------------------------------------------+ Best States ------------- Heat Dissipation 45 Energy Generation 14 Energy Capacity 665 Matter Stores 300 Matter Capacity 300 Sight Range 16 Terrain Scan Density 85 ECM Strength 1 Evasion (%) 64 Recoil Reduction 3 Particle Charging 15 Item Schematics ----------------- None Robot Schematics ------------------ None Fabricated ------------ Nothing Repaired ---------- Nothing Alien Tech Used ----------------- None Achievements -------------- Quantum Hacking True Hacker Challenges ------------ None Game ------ Seed ThrusterBombTerminator Manual? 0 Play Time 00:39:08 Cumulative 15.1 hours Start 2025.10.16 @ 05:08:53 End 2025.10.16 @ 05:48:32 Sessions 1 Manual Loads 0 Difficulty Rogue Special Mode None Game No. 27 Rogue 10 Adventurer 17 Explorer 0 Win Type - Total 0 Types 0/0/0/0/0/0/0/0/0/0 Lore% 13 Gallery% 26 Achievement% 23 Wizard Run 0 Options --------- Layout 0 ASCII 0 Keyboard 1 Movement Numpad Keybinds 0 Fullscreen 1 Font 18/X11 Map View 76x50 Zoom Use 1% Tactical HUD 1 Map Filters NONE Filters NONE Steam 1 RUN: 876ccc19-2572-4b81-ba7e-af33c9614404